fUSD/lending_fUSD_20240327
["ID","MTS","AMOUNT","RATE_DAILY","PERIOD"]
[320751003,1711545069571,-166.82827253,0.00055342,120]
[320751004,1711545069583,-500.0,0.00055342,120]
[320751005,1711545069595,-761.49,0.00055342,120]
[320751006,1711545069606,-666.95,0.00055342,120]
[320751007,1711545069617,-572.49,0.00055342,120]
[320751008,1711545069628,-989.63,0.00055342,120]
[320751009,1711545069641,-500.0,0.00055342,120]
[320751010,1711545069653,-2038.73,0.00055342,120]
[320751011,1711545069663,-500.0,0.00055342,120]
[320751012,1711545069676,-500.0,0.00055342,120]
[320751013,1711545069686,-966.04,0.00055342,120]
[320751014,1711545069697,-7410.27,0.00055342,120]
[320751015,1711545069708,-591.2,0.00055342,120]
[320751016,1711545069719,-1021.61,0.00055342,120]
[320751017,1711545069730,-917.72,0.00055342,120]
[320751018,1711545069741,-1185.67,0.00055342,120]
[320751019,1711545069752,-4131.44,0.00055342,120]
[320751020,1711545069763,-500.0,0.00055342,120]
[320751021,1711545069775,-500.0,0.00055342,120]
[320751022,1711545069787,-500.0,0.00055342,120]
[320751023,1711545069797,-1840.41,0.00055342,120]
[320751024,1711545069808,-2021.69,0.00055342,120]
[320751025,1711545069819,-500.0,0.00055342,120]
[320751026,1711545069830,-500.0,0.00055342,120]
[320751027,1711545069842,-1046.06,0.00055342,120]
[320751028,1711545069853,-3117.06,0.00055342,120]
[320751029,1711545069864,-881.25,0.00055342,120]
[320751030,1711545069875,-500.0,0.00055342,120]
[320751031,1711545069890,-743.64,0.00055342,120]
[320751032,1711545069902,-6836.54,0.00055342,120]
[320751033,1711545069912,-500.0,0.00055342,120]
[320751034,1711545069925,-2764.61,0.00055342,120]
[320751035,1711545069936,-804.84,0.00055342,120]
[320751036,1711545069947,-1965.13,0.00055342,120]
[320751037,1711545069958,-4896.21,0.00055342,120]
[320751038,1711545069968,-501.09,0.00055342,120]
[320751039,1711545069979,-500.0,0.00055342,120]
[320751040,1711545069990,-797.84,0.00055342,120]
[320751041,1711545070001,-500.0,0.00055342,120]
[320751042,1711545070012,-1043.28,0.00055342,120]
[320751043,1711545070028,-1995.94,0.00055342,120]
[320751044,1711545070038,-500.0,0.00055342,120]
[320751045,1711545070049,-500.0,0.00055342,120]
[320751046,1711545070061,-500.0,0.00055342,120]
[320751047,1711545070073,-2893.0,0.00055342,120]
[320751048,1711545070084,-15249.71,0.00055342,120]
[320751049,1711545070094,-500.0,0.00055342,120]
[320751050,1711545070106,-558.52,0.00055342,120]
[320751051,1711545070117,-221.0348339,0.00055342,120]
[320751052,1711545070128,-75992.14,0.00055342,120]
[320751053,1711545070142,-500.0,0.00055342,120]
[320751054,1711545070152,-3596.62,0.00055342,120]
[320751055,1711545070163,-500.0,0.00055342,120]
[320751056,1711545070173,-500.0,0.00055342,120]
[320751057,1711545070183,-3332.62,0.00055342,120]
[320751058,1711545070193,-500.0,0.00055342,120]
[320751059,1711545070204,-4816.18,0.00055342,120]
[320751060,1711545070214,-1863.41,0.00055342,120]
[320751061,1711545070224,-500.0,0.00055342,120]
[320751062,1711545070235,-7622.66,0.00055342,120]
[320751063,1711545070246,-1308.14,0.00055342,120]
[320751064,1711545070258,-500.0,0.00055342,120]
[320751065,1711545070269,-2387.05,0.00055342,120]
[320751066,1711545070280,-6076.26,0.00055342,120]
[320751067,1711545070290,-500.0,0.00055342,120]
[320751068,1711545070301,-1319.68,0.00055342,120]
[320751069,1711545070312,-500.0,0.00055342,120]
[320751070,1711545070461,-500.0,0.00055342,120]
[320751071,1711545070473,-5368.72,0.00055342,120]
[320751072,1711545070484,-500.0,0.00055342,120]
[320751073,1711545070496,-5144.72,0.00055342,120]
[320751074,1711545070510,-500.0,0.00055342,120]
[320751075,1711545070522,-2956.7,0.00055342,120]
[320751076,1711545070534,-989.52,0.00055342,120]
[320751077,1711545070546,-518.82,0.00055342,120]
[320751078,1711545070557,-3326.27,0.00055342,120]
[320751079,1711545070568,-500.0,0.00055342,120]
[320751080,1711545070580,-3041.64,0.00055342,120]
[320751081,1711545070591,-500.0,0.00055342,120]
[320751082,1711545070609,-20346.3,0.00055342,120]
[320751083,1711545070621,-9005.78,0.00055342,120]
[320751084,1711545070637,-2619.34,0.00055342,120]
[320751085,1711545070649,-641.52,0.00055342,120]
[320751086,1711545070660,-500.0,0.00055342,120]
[320751087,1711545070676,-500.0,0.00055342,120]
[320751088,1711545070686,-4819.76,0.00055342,120]
[320751089,1711545070697,-500.0,0.00055342,120]
[320751090,1711545070713,-595.36,0.00055342,120]
[320751091,1711545070724,-4918.59,0.00055342,120]
[320751092,1711545070736,-3188.02,0.00055342,120]
[320751093,1711545070746,-500.0,0.00055342,120]
[320751094,1711545070757,-3264.58,0.00055342,120]
[320751095,1711545070769,-2720.41,0.00055342,120]
[320751096,1711545070780,-1357.49,0.00055342,120]
[320751097,1711545070792,-616.58,0.00055342,120]
[320751098,1711545070803,-500.0,0.00055342,120]
[320751099,1711545070818,-611.94,0.00055342,120]
[320751100,1711545070830,-511.18,0.00055342,120]
[320751101,1711545070841,-500.0,0.00055342,120]
[320751102,1711545070853,-500.0,0.00055342,120]
[320751103,1711545070864,-1000.0,0.00055342,14]
[320751104,1711545070875,-5095.68,0.00055342,120]
[320751105,1711545070895,-4056.72,0.00055342,120]
[320751106,1711545070906,-8837.31,0.00055342,120]
[320751107,1711545070932,-1076.16,0.00055342,120]
[320751108,1711545070944,-2391.62,0.00055342,120]
[320751109,1711545070957,-528.46,0.00055342,120]
[320751110,1711545070970,-1376.44,0.00055342,120]
[320751111,1711545070983,-2516.81,0.00055342,120]
[320751112,1711545070995,-41305.17,0.00055342,120]
[320751113,1711545071006,-3046.15,0.00055342,120]
[320751114,1711545071021,-835.27,0.00055342,120]
[320751115,1711545071036,-5486.9,0.00055342,120]
[320751116,1711545071048,-2405.09,0.00055342,120]
[320751117,1711545071063,-500.0,0.00055342,120]
[320751118,1711545071077,-1426.57,0.00055342,120]
[320751119,1711545071090,-2003.76,0.00055342,120]
[320751120,1711545071104,-5722.98,0.00055342,120]
[320751121,1711545071116,-844.73,0.00055342,120]
[320751122,1711545071128,-993.46,0.00055342,120]
[320751123,1711545071150,-6090.95,0.00055342,120]
[320751124,1711545071162,-500.0,0.00055342,120]
[320751125,1711545071177,-1283.48,0.00055342,120]
[320751126,1711545071190,-985.29,0.00055342,120]
[320751127,1711545071202,-671.24,0.00055342,120]
[320751128,1711545071214,-2372.43,0.00055342,120]
[320751129,1711545071227,-500.0,0.00055342,120]
[320751130,1711545071241,-2269.62,0.00055342,120]
[320751131,1711545071255,-3926.77,0.00055342,120]
[320751132,1711545071267,-3735.27,0.00055342,120]
[320751133,1711545071280,-6290.77,0.00055342,120]
[320751134,1711545071292,-500.0,0.00055342,120]
[320751135,1711545071304,-4585.67,0.00055342,120]
[320751136,1711545071316,-13466.38,0.00055342,120]
[320751137,1711545071328,-1447.6,0.00055342,120]
[320751138,1711545071345,-500.0,0.00055342,120]
[320751139,1711545071356,-500.0,0.00055342,120]
[320751140,1711545071368,-1646.74,0.00055342,120]
[320751141,1711545071383,-500.0,0.00055342,120]
[320751142,1711545071397,-3987.19,0.00055342,120]
[320751143,1711545071407,-2105.18,0.00055342,120]
[320751144,1711545071419,-527.29,0.00055342,120]
[320751145,1711545071431,-1059.25,0.00055342,120]
[320751146,1711545071441,-500.0,0.00055342,120]
[320751147,1711545071452,-6467.88,0.00055342,120]
[320751148,1711545071464,-1043.38,0.00055342,120]
[320751149,1711545071475,-5114.35,0.00055342,120]
[320751150,1711545071487,-510.78353411,0.00055342,120]
[320751151,1711545071500,-3638.16,0.00055342,120]
[320751152,1711545071512,-500.0,0.00055342,120]
[320751153,1711545071524,-5717.55,0.00055342,120]
[320751154,1711545071541,-1695.49,0.00055342,120]
[320751155,1711545071555,-500.0,0.00055342,120]
[320751156,1711545071566,-3104.92,0.00055342,120]
[320751157,1711545071578,-500.0,0.00055342,120]
[320751158,1711545071590,-500.0,0.00055342,120]
[320751159,1711545071602,-710.05,0.00055342,120]
[320751160,1711545071616,-500.0,0.00055342,120]
[320751161,1711545071629,-9267.85,0.00055342,120]
[320751162,1711545071650,-7768.64,0.00055342,120]
[320751163,1711545071663,-1454.41,0.00055342,120]
[320751164,1711545071676,-791.84,0.00055342,120]
[320751165,1711545071688,-5542.26,0.00055342,120]
[320751166,1711545071700,-51213.0,0.00055342,120]
[320751167,1711545071712,-621.84,0.00055342,120]
[320751168,1711545071725,-500.0,0.00055342,120]
[320751169,1711545071738,-947.8,0.00055342,120]
[320751170,1711545071750,-3395.08,0.00055342,120]
[320751171,1711545071763,-5893.22,0.00055342,120]
[320751172,1711545071776,-500.0,0.00055342,120]
[320751173,1711545071789,-4278.93,0.00055342,120]
[320751174,1711545071801,-500.0,0.00055342,120]
[320751175,1711545071813,-31450.21,0.00055342,120]
[320751176,1711545071825,-5909.33,0.00055342,120]
[320751177,1711545071838,-518.71,0.00055342,120]
[320751178,1711545071856,-614.55,0.00055342,120]
[320751179,1711545071870,-5023.68,0.00055342,120]
[320751180,1711545071887,-2654.52,0.00055342,120]
[320751181,1711545071900,-8389.13,0.00055342,120]
[320751182,1711545071914,-500.0,0.00055342,120]
[320751183,1711545071927,-1079.12,0.00055342,120]
[320751184,1711545071941,-627.77,0.00055342,120]
[320751185,1711545071956,-2857.46,0.00055342,120]
[320751186,1711545071974,-500.0,0.00055342,120]
[320751187,1711545071987,-500.0,0.00055342,120]
[320751188,1711545072001,-908.56,0.00055342,120]
[320751189,1711545072014,-500.0,0.00055342,120]
[320751190,1711545072030,-15730.44,0.00055342,120]
[320751191,1711545072043,-500.0,0.00055342,7]
[320751192,1711545072055,-500.0,0.00055342,120]
[320751193,1711545072070,-500.0,0.00055342,120]
[320751194,1711545072084,-2505.02,0.00055342,120]
[320751195,1711545072097,-17684.62,0.00055342,120]
[320751196,1711545072112,-1883.86,0.00055342,120]
[320751197,1711545072124,-15538.1,0.00055342,120]
[320751198,1711545072142,-3248.76,0.00055342,120]
[320751199,1711545072155,-1991.17,0.00055342,120]
[320751200,1711545072168,-500.0,0.00055342,120]
[320751201,1711545072181,-3746.02,0.00055342,120]
[320751202,1711545072194,-696.66,0.00055342,120]
[320751203,1711545072208,-20423.54,0.00055342,120]
[320751204,1711545072220,-2000.0,0.00055342,120]
[320751205,1711545072233,-3284.59,0.00055342,120]
[320751206,1711545072244,-500.0,0.00055342,120]
[320751207,1711545072256,-4345.76,0.00055342,120]
[320751208,1711545072268,-2934.36,0.00055342,120]
[320751209,1711545072283,-4666.84,0.00055342,21]
[320751210,1711545072295,-2466.29,0.00055342,120]
[320751211,1711545072307,-3005.61,0.00055342,120]
[320751212,1711545072319,-734.73,0.00055342,120]
[320751213,1711545072333,-500.0,0.00055342,120]
[320751214,1711545072345,-5243.53,0.00055342,120]
[320751215,1711545072358,-500.0,0.00055342,120]
[320751216,1711545072372,-1272.81,0.00055342,120]
[320751217,1711545072391,-7682.89,0.00055342,120]
[320751218,1711545072404,-500.0,0.00055342,120]
[320751219,1711545072415,-2956.88,0.00055342,120]
[320751220,1711545072428,-500.0,0.00055342,120]
[320751221,1711545072440,-893.14,0.00055342,120]
[320751222,1711545072452,-500.0,0.00055342,120]
[320751223,1711545072464,-11376.4,0.00055342,120]
[320751224,1711545072477,-8065.37,0.00055342,120]
[320751225,1711545072490,-1965.98,0.00055342,120]
[320751226,1711545072502,-1547.28,0.00055342,120]
[320751227,1711545072514,-500.0,0.00055342,120]
[320751228,1711545072526,-11227.74,0.00055342,120]
[320751229,1711545072541,-1169.22,0.00055342,120]
[320751230,1711545072559,-1550.86,0.00055342,120]
[320751231,1711545072572,-1389.24,0.00055342,120]
[320751232,1711545072583,-2427.55,0.00055342,120]
[320751233,1711545072596,-500.0,0.00055342,120]
[320751234,1711545072607,-812.47,0.00055342,120]
[320751235,1711545072620,-937.62,0.00055342,120]
[320751236,1711545072635,-621.57,0.00055342,120]
[320751237,1711545072647,-548.55,0.00055342,120]
[320751238,1711545072659,-3287.18,0.00055342,120]
[320751239,1711545072671,-500.0,0.00055342,120]
[320751240,1711545072684,-2626.7,0.00055342,120]
[320751241,1711545072697,-1103.29,0.00055342,120]
[320751242,1711545072709,-2273.64,0.00055342,120]
[320751243,1711545072721,-2808.51,0.00055342,120]
[320751244,1711545072733,-1998.34,0.00055342,120]
[320751245,1711545072745,-593.53,0.00055342,120]
[320751246,1711545072757,-6582.74,0.00055342,120]
[320751247,1711545072770,-919.65,0.00055342,120]
[320751248,1711545072782,-826.55,0.00055342,120]
[320751249,1711545072794,-601.18,0.00055342,120]
[320751250,1711545072805,-3143.51,0.00055342,120]
[320751251,1711545072818,-847.53,0.00055342,120]
[320751252,1711545072829,-500.0,0.00055342,85]
[320751253,1711545072840,-535.77,0.00055342,120]
[320751254,1711545072852,-200.0,0.00055368,120]
[320751255,1711545072863,-800.0,0.00055368,120]
[320751256,1711545072874,-500.0,0.00055368,120]
[320751257,1711545072888,-200.0,0.00055368,120]
[320751258,1711545072903,-594.87826908,0.00055407,120]
[320751259,1711545072915,-2254.24802014,0.00055496,30]
[320751260,1711545072928,-785.83042699,0.00055496,30]
[320751261,1711545072939,-157.032721,0.00055498,109]
[320751262,1711545072951,-594.87826908,0.00055581,120]
[320751263,1711545072963,-500.0,0.00055616,120]
[320751264,1711545072974,-500.0,0.00055616,120]
[320751265,1711545072985,-500.0,0.00055616,120]
[320751266,1711545072996,-500.0,0.00055616,120]
[320751267,1711545073008,-500.0,0.00055616,120]
[320751268,1711545073021,-500.0,0.00055616,120]
[320751269,1711545073032,-401.26,0.00055616,120]
[320751270,1711545073043,-379.27164793,0.00055616,120]
[320751271,1711545073054,-500.0,0.00055616,120]
[320751272,1711545073068,-500.0,0.00055616,120]
[320751273,1711545073079,-500.0,0.00055616,120]
[320751274,1711545073091,-500.0,0.00055616,120]
[320751275,1711545073102,-500.0,0.00055616,120]
[320751276,1711545073113,-500.0,0.00055616,120]
[320751277,1711545073124,-500.0,0.00055616,120]
[320751278,1711545073140,-500.0,0.00055616,120]
[320751279,1711545073151,-500.0,0.00055616,120]
[320751280,1711545073161,-500.0,0.00055616,120]
[320751281,1711545073173,-500.0,0.00055616,120]
[320751282,1711545073183,-500.0,0.00055616,120]
[320751283,1711545073194,-500.0,0.00055616,120]
[320751284,1711545073205,-1961.67,0.00055616,120]
[320751285,1711545073217,-500.0,0.00055616,120]
[320751286,1711545073228,-500.0,0.00055616,120]
[320751287,1711545073240,-820.11,0.00055616,120]
[320751288,1711545073251,-500.0,0.00055616,120]
[320751289,1711545073261,-1615.14,0.00055616,120]
[320751290,1711545073271,-500.0,0.00055616,120]
[320751291,1711545073282,-500.0,0.00055616,120]
[320751292,1711545073292,-500.0,0.00055616,120]
[320751293,1711545073303,-500.0,0.00055616,120]
[320751294,1711545073314,-508.56,0.00055616,120]
[320751295,1711545073327,-1181.42,0.00055616,120]
[320751296,1711545073337,-459.37459458,0.00055616,120]
[320751297,1711545073348,-500.0,0.00055616,120]
[320751298,1711545073359,-2874.39,0.00055616,120]
[320751299,1711545073369,-500.0,0.00055616,120]
[320751300,1711545073379,-500.0,0.00055616,120]
[320751301,1711545073394,-168.7,0.00055616,120]
[320751302,1711545073405,-318.98,0.00055616,120]
[320751303,1711545073416,-500.0,0.00055616,120]
[320751304,1711545073426,-934.73,0.00055616,120]
[320751305,1711545073592,-925.7,0.00055616,120]
[320751306,1711545073603,-500.0,0.00055616,120]
[320751307,1711545073614,-757.64,0.00055616,120]
[320751308,1711545073625,-500.0,0.00055616,120]
[320751309,1711545073641,-500.0,0.00055616,120]
[320751310,1711545073651,-292.34,0.00055616,120]
[320751311,1711545073661,-2559.78,0.00055616,120]
[320751312,1711545073671,-500.0,0.00055616,120]
[320751313,1711545073683,-762.08,0.00055616,60]
[320751314,1711545073693,-500.0,0.00055616,120]
[320751315,1711545073703,-2083.65,0.00055616,120]
[320751316,1711545073713,-533.62,0.00055616,120]
[320751317,1711545073723,-1701.37,0.00055616,120]
[320751318,1711545073733,-641.38,0.00055616,120]
[320751319,1711545073744,-500.0,0.00055616,120]
[320751320,1711545073755,-957.41,0.00055616,120]
[320751321,1711545073766,-2368.37,0.00055616,120]
[320751322,1711545073777,-474.82,0.00055616,120]
[320751323,1711545073788,-500.0,0.00055616,120]
[320751324,1711545073798,-1114.19,0.00055616,120]
[320751325,1711545073809,-500.0,0.00055616,120]
[320751326,1711545073822,-500.0,0.00055616,120]
[320751327,1711545073836,-500.0,0.00055616,120]
[320751328,1711545073848,-500.0,0.00055616,120]
[320751329,1711545073859,-500.0,0.00055616,120]
[320751330,1711545073870,-500.0,0.00055616,120]
[320751331,1711545073881,-500.0,0.00055616,120]
[320751332,1711545073895,-702.41,0.00055616,120]
[320751333,1711545073906,-845.28,0.00055616,120]
[320751334,1711545073915,-857.93,0.00055616,120]
[320751335,1711545073926,-563.4,0.00055616,120]
[320751336,1711545073937,-500.0,0.00055616,120]
[320751337,1711545073947,-665.89,0.00055616,120]
[320751338,1711545073959,-500.0,0.00055616,120]
[320751339,1711545073969,-500.0,0.00055616,120]
[320751340,1711545073980,-500.0,0.00055616,120]
[320751341,1711545073992,-500.0,0.00055616,120]
[320751342,1711545074003,-500.0,0.00055616,120]
[320751343,1711545074015,-317.92,0.00055616,120]
[320751344,1711545074031,-500.0,0.00055616,120]
[320751345,1711545074043,-500.0,0.00055616,120]
[320751346,1711545074053,-734.62,0.00055616,120]
[320751347,1711545074065,-1991.27,0.00055616,120]
[320751348,1711545074076,-500.0,0.00055616,120]
[320751349,1711545074087,-500.0,0.00055616,120]
[320751350,1711545074098,-500.0,0.00055616,120]
[320751351,1711545074109,-500.0,0.00055616,120]
[320751352,1711545074119,-982.98,0.00055616,120]
[320751353,1711545074129,-500.0,0.00055616,120]
[320751354,1711545074146,-510.83,0.00055616,120]
[320751355,1711545074156,-500.0,0.00055616,120]
[320751356,1711545074166,-2092.14,0.00055616,120]
[320751357,1711545074176,-500.0,0.00055616,120]
[320751358,1711545074186,-589.59,0.00055616,120]
[320751359,1711545074196,-500.0,0.00055616,120]
[320751360,1711545074206,-500.0,0.00055616,120]
[320751361,1711545074215,-500.0,0.00055616,120]
[320751362,1711545074225,-186.99214325,0.00055616,120]
[320751363,1711545074235,-500.0,0.00055616,120]
[320751364,1711545074245,-1186.03,0.00055616,120]
[320751365,1711545074255,-500.0,0.00055616,120]
[320751366,1711545074265,-688.84,0.00055616,120]
[320751367,1711545074275,-500.0,0.00055616,120]
[320751368,1711545074285,-601.84010853,0.00055616,120]
[320751369,1711545074295,-500.0,0.00055616,120]
[320751370,1711545074312,-500.0,0.00055616,120]
[320751371,1711545074323,-519.0,0.00055616,120]
[320751372,1711545074333,-639.78,0.00055616,120]
[320751373,1711545074343,-500.0,0.00055616,120]
[320751374,1711545074353,-500.0,0.00055616,120]
[320751375,1711545074363,-433.98,0.00055616,120]
[320751376,1711545074374,-676.45,0.00055616,120]
[320751377,1711545074386,-500.0,0.00055616,120]
[320751378,1711545074397,-1021.21,0.00055616,120]
[320751379,1711545074407,-694.01,0.00055616,120]
[320751380,1711545074418,-500.0,0.00055616,120]
[320751381,1711545074429,-500.0,0.00055616,120]
[320751382,1711545074439,-602.67,0.00055616,120]
[320751383,1711545074449,-500.0,0.00055616,120]
[320751384,1711545074460,-500.0,0.00055616,120]
[320751385,1711545074470,-500.0,0.00055616,120]
[320751386,1711545074480,-500.0,0.00055616,120]
[320751387,1711545074490,-500.0,0.00055616,120]
[320751388,1711545074500,-519.38,0.00055616,120]
[320751389,1711545074509,-636.28,0.00055616,120]
[320751390,1711545074519,-500.0,0.00055616,120]
[320751391,1711545074545,-571.87,0.00055616,120]
[320751392,1711545074556,-935.53,0.00055616,120]
[320751393,1711545074566,-500.0,0.00055616,120]
[320751394,1711545074576,-500.0,0.00055616,120]
[320751395,1711545074587,-1161.12,0.00055616,120]
[320751396,1711545074598,-500.0,0.00055616,120]
[320751397,1711545074613,-500.0,0.00055616,120]
[320751398,1711545074624,-500.0,0.00055616,120]
[320751399,1711545074635,-500.0,0.00055616,120]
[320751400,1711545074644,-500.0,0.00055616,120]
[320751401,1711545074654,-500.0,0.00055616,120]
[320751402,1711545074663,-500.0,0.00055616,120]
[320751403,1711545074674,-1152.46,0.00055616,120]
[320751404,1711545074683,-509.2,0.00055616,120]
[320751405,1711545074693,-500.0,0.00055616,120]
[320751406,1711545074703,-793.3,0.00055616,120]
[320751407,1711545074713,-500.0,0.00055616,120]
[320751408,1711545074724,-500.0,0.00055616,120]
[320751409,1711545074736,-669.53,0.00055616,120]
[320751410,1711545074747,-500.0,0.00055616,120]
[320751411,1711545074759,-807.63,0.00055616,120]
[320751412,1711545074769,-500.0,0.00055616,120]
[320751413,1711545074779,-500.0,0.00055616,120]
[320751414,1711545074789,-500.0,0.00055616,120]
[320751415,1711545074799,-701.89,0.00055616,120]
[320751416,1711545074810,-663.69,0.00055616,120]
[320751417,1711545074820,-794.84,0.00055616,120]
[320751418,1711545074830,-551.28,0.00055616,120]
[320751419,1711545074840,-500.0,0.00055616,120]
[320751420,1711545074850,-813.9,0.00055616,120]
[320751421,1711545074860,-500.0,0.00055616,120]
[320751422,1711545074870,-500.0,0.00055616,120]
[320751423,1711545074880,-896.96,0.00055616,120]
[320751424,1711545074892,-500.0,0.00055616,120]
[320751425,1711545074901,-500.0,0.00055616,120]
[320751426,1711545074910,-500.0,0.00055616,120]
[320751427,1711545074920,-406.27527937,0.00055616,120]
[320751428,1711545074930,-500.0,0.00055616,120]
[320751429,1711545074941,-500.0,0.00055616,120]
[320751430,1711545074951,-644.56,0.00055616,120]
[320751431,1711545074961,-1057.11,0.00055616,120]
[320751432,1711545074971,-503.38,0.00055616,120]
[320751433,1711545074981,-500.0,0.00055616,120]
[320751434,1711545074990,-521.68,0.00055616,120]
[320751435,1711545075000,-1089.53,0.00055616,120]
[320751436,1711545075010,-1006.34,0.00055616,120]
[320751437,1711545075024,-500.0,0.00055616,120]
[320751438,1711545075034,-500.0,0.00055616,120]
[320751439,1711545075044,-500.0,0.00055616,120]
[320751440,1711545075053,-599.01,0.00055616,120]
[320751441,1711545075064,-500.0,0.00055616,120]
[320751442,1711545075074,-500.0,0.00055616,120]
[320751443,1711545075084,-500.0,0.00055616,120]
[320751444,1711545075095,-500.0,0.00055616,120]
[320751445,1711545075104,-753.3,0.00055616,120]
[320751446,1711545075114,-500.0,0.00055616,120]
[320751447,1711545075124,-808.54,0.00055616,120]
[320751448,1711545075134,-500.0,0.00055616,120]
[320751449,1711545075144,-635.79,0.00055616,120]
[320751450,1711545075154,-500.0,0.00055616,120]
[320751451,1711545075164,-606.72,0.00055616,120]
[320751452,1711545075174,-500.0,0.00055616,120]
[320751453,1711545075184,-728.45,0.00055616,120]
[320751454,1711545075194,-2145.05,0.00055616,120]
[320751455,1711545075203,-1062.14,0.00055616,120]
[320751456,1711545075213,-500.0,0.00055616,120]
[320751457,1711545075222,-632.09,0.00055616,120]
[320751458,1711545075232,-500.0,0.00055616,120]
[320751459,1711545075241,-3099.8901305,0.00055616,20]
[320751460,1711545075250,-523.59,0.00055616,120]
[320751461,1711545075260,-500.0,0.00055616,120]
[320751462,1711545075270,-889.55,0.00055616,120]
[320751463,1711545075279,-500.0,0.00055616,120]
[320751464,1711545075289,-500.0,0.00055616,120]
[320751465,1711545075298,-558.02,0.00055616,120]
[320751466,1711545075308,-500.0,0.00055616,120]
[320751467,1711545075317,-500.0,0.00055616,120]
[320751468,1711545075327,-951.16,0.00055616,120]
[320751469,1711545075337,-1984.5,0.00055616,120]
[320751470,1711545075347,-500.0,0.00055616,120]
[320751471,1711545075357,-500.0,0.00055616,120]
[320751472,1711545075366,-743.26,0.00055616,120]
[320751473,1711545075376,-500.0,0.00055616,120]
[320751474,1711545075390,-500.0,0.00055616,120]
[320751475,1711545075401,-671.68,0.00055616,120]
[320751476,1711545075412,-500.0,0.00055616,120]
[320751477,1711545075423,-1096.53,0.00055616,120]
[320751478,1711545075433,-500.0,0.00055616,120]
[320751479,1711545075452,-1269.92,0.00055616,120]
[320751480,1711545075467,-1397.6,0.00055616,120]
[320751481,1711545075478,-755.05,0.00055616,120]
[320751482,1711545075489,-500.0,0.00055616,120]
[320751483,1711545075499,-746.9,0.00055616,120]
[320751484,1711545075509,-500.0,0.00055616,120]
[320751485,1711545075520,-500.0,0.00055616,120]
[320751486,1711545075531,-500.0,0.00055616,120]
[320751487,1711545075540,-500.0,0.00055616,120]
[320751488,1711545075550,-500.0,0.00055616,120]
[320751489,1711545075560,-839.93,0.00055616,120]
[320751490,1711545075571,-500.0,0.00055616,120]
[320751491,1711545075580,-544.95,0.00055616,120]
[320751492,1711545075590,-500.0,0.00055616,120]
[320751493,1711545075601,-2294.24,0.00055616,120]
[320751494,1711545075611,-610.95,0.00055616,120]
[320751495,1711545075620,-500.0,0.00055616,120]
[320751496,1711545075630,-500.0,0.00055616,120]
[320751497,1711545075643,-500.0,0.00055616,120]
[320751498,1711545075653,-500.0,0.00055616,120]
[320751499,1711545075664,-837.65,0.00055616,120]
[320751500,1711545075674,-500.0,0.00055616,120]
[320751501,1711545075684,-500.0,0.00055616,7]
[320751502,1711545075698,-643.05,0.00055616,120]